bitfinex/quotes_ETHUSD_20250806
["timestamp","ask_amount","ask_price","bid_price","bid_amount"]
[1754475762010,5.2425,3619.7,3619.4,3.3128137]
[1754475762213,0.9205,3619.6,3619.4,3.4512137]
[1754475762428,4.322,3619.7,3619.6,2.76273621]
[1754475763048,5.2425,3619.7,3619.6,2.76273621]
[1754475763923,5.2425,3619.7,3619.4,0.6884]
[1754475764129,0.9205,3619.6,3619.4,0.6884]
[1754475764338,0.9205,3619.5,3619.4,0.6884]
[1754475764849,0.9205,3619.5,3619.2,2.90141548]
[1754475765060,0.9205,3619.4,3619.2,0.1384]
[1754475765353,0.9205,3619.4,3619.2,2.9014323]
[1754475765549,0.9205,3619.3,3619.2,0.6884]
[1754475765762,0.9205,3619.3,3618.6,2.76345798]
[1754475766076,4.8005,3619.2,3619.0,0.1384]
[1754475766561,0.9205,3619.1,3619.0,0.6884]
[1754475766774,0.9205,3619.1,3619.0,3.45159425]
[1754475767974,4.316,3619.2,3619.1,2.7631179]
[1754475768281,4.752,3619.2,3619.1,2.7631179]
[1754475768482,0.4845,3619.4,3619.3,2.76296521]
[1754475768777,4.313,3619.4,3619.2,3.31300936]
[1754475769164,5.2335,3619.4,3619.2,0.6884]
[1754475769359,5.2335,3619.4,3619.3,2.76296521]
[1754475769561,5.2315,3619.4,3619.3,2.76296521]
[1754475770952,4.7955,3619.4,3619.3,2.76296521]
[1754475771377,0.4845,3619.4,3619.3,2.76296521]
[1754475771581,4.7965,3619.4,3619.3,2.76296521]
[1754475772554,4.308,3619.4,3619.3,2.76296521]
[1754475773401,0.4845,3619.6,3619.3,2.76296521]
[1754475773599,1e-08,3620.3,3619.3,2.76296521]
[1754475773600,4.308,3619.5,3619.4,3.31288887]
[1754475773884,0.1384,3620.0,3619.8,2.76251013]
[1754475774073,0.1384,3620.0,3619.9,2.76250725]
[1754475774264,0.436,3620.1,3619.9,2.76250725]
[1754475774585,5.2265,3620.0,3619.8,2.76253108]
[1754475774897,4.742,3620.0,3619.9,2.76250725]
[1754475775102,4.742,3620.0,3619.8,2.76255456]
[1754475775258,4.306,3620.0,3619.8,2.76255456]
[1754475775596,0.9205,3619.9,3619.8,2.76255456]
[1754475776391,0.6229,3620.2,3619.9,2.76246882]
[1754475776580,4.306,3620.1,3619.9,2.76246882]
[1754475776787,4.7905,3620.1,3619.9,2.76246882]
[1754475776995,0.4845,3620.0,3619.8,2.76256375]
[1754475777295,4.304,3619.9,3619.8,2.76256375]
[1754475778586,4.7885,3619.9,3619.8,2.76256375]
[1754475780109,0.4845,3619.9,3619.8,2.76256375]
[1754475780310,4.7845,3619.9,3619.8,2.76256375]
[1754475780517,4.7835,3619.9,3619.8,2.76256375]
[1754475781418,4.7835,3619.9,3619.7,2.90102558]
[1754475781579,4.7667,3619.9,3619.7,2.90102558]
[1754475781924,0.9518,3619.8,3619.6,0.1384]
[1754475782416,0.9518,3619.7,3619.6,2.90111105]
[1754475782839,4.299,3619.7,3619.6,1.6418]
[1754475782991,4.299,3619.7,3619.6,4.40453621]
[1754475783401,1e-08,3620.3,3620.2,2.76227832]
[1754475783629,1e-08,3620.3,3620.2,3.31227832]
[1754475783793,1e-08,3620.3,3620.2,4.40407832]
[1754475784124,4.29900001,3620.3,3620.2,4.40407832]
[1754475784429,1e-08,3620.3,3620.2,3.93917832]
[1754475784731,5.25080001,3620.3,3620.1,2.76233529]
[1754475784884,4.43740001,3620.3,3620.1,2.76233529]
[1754475785101,0.9518,3620.2,3620.0,2.76238973]
[1754475785518,0.9518,3620.1,3619.9,2.76250725]
[1754475785838,4.3,3620.0,3619.9,3.31250725]
[1754475786648,4.3,3620.0,3619.9,3.45090725]
[1754475787047,1e-08,3620.3,3620.2,2.76227832]
[1754475787555,1e-08,3620.3,3620.2,3.80077832]
[1754475787752,4.30100001,3620.3,3620.2,4.40407832]
[1754475788117,4.30100001,3620.3,3620.2,3.45067832]
[1754475789350,4.30100001,3620.3,3620.1,2.7623474]
[1754475789351,5.25280001,3620.3,3620.1,2.7623474]
[1754475789579,0.9518,3620.2,3620.1,2.7623474]
[1754475791454,1e-08,3620.3,3620.2,2.76227832]
[1754475791675,4.29900001,3620.3,3620.2,3.31227832]
[1754475792443,4.78310001,3620.3,3620.2,3.31227832]
[1754475792681,4.78310001,3620.3,3620.2,3.45067832]
[1754475793197,4.29900001,3620.3,3620.2,4.40407832]
[1754475793878,1e-08,3620.3,3620.2,4.40407832]
[1754475794080,4.29900001,3620.3,3620.2,3.93917832]
[1754475794574,5.25080001,3620.3,3620.2,2.90067832]
[1754475794777,5.25080001,3620.3,3620.2,2.76227832]
[1754475795570,1e-08,3620.3,3620.2,2.76227832]
[1754475795899,1e-08,3620.3,3620.2,3.38917832]
[1754475795900,4.29900001,3620.3,3620.2,3.38917832]
[1754475796206,4.29900001,3620.3,3620.2,2.90067832]
[1754475796433,4.78310001,3620.3,3620.2,2.90067832]
[1754475797006,1e-08,3620.3,3620.2,2.90067832]
[1754475797198,4.29900001,3620.3,3620.2,3.38917832]
[1754475797404,4.29900001,3620.3,3620.2,2.90067832]
[1754475797609,4.29900001,3620.3,3620.2,3.45067832]
[1754475798589,1e-08,3620.3,3620.2,3.45067832]
[1754475798797,4.29900001,3620.3,3620.2,3.45067832]
[1754475800632,4.29900001,3620.3,3620.2,4.40407832]
[1754475801500,4.29900001,3620.3,3620.2,3.93917832]
[1754475801688,1e-08,3620.3,3620.2,3.93917832]
[1754475801900,4.29900001,3620.3,3620.2,3.93917832]
[1754475804018,1e-08,3620.3,3620.2,3.93917832]
[1754475804197,4.29800001,3620.3,3620.2,4.40407832]
[1754475805705,4.29800001,3620.3,3620.2,3.93917832]
[1754475806190,4.29800001,3620.3,3620.2,4.40407832]
[1754475807220,1e-08,3620.3,3620.2,4.40407832]
[1754475807420,1e-08,3620.3,3620.2,3.45067832]
[1754475809900,1e-08,3620.3,3620.2,3.93917832]
[1754475810096,4.29800001,3620.3,3620.2,3.93917832]
[1754475810296,4.29800001,3620.3,3620.2,3.45067832]
[1754475810729,5.24980001,3620.3,3620.2,3.45067832]
[1754475810889,5.24980001,3620.3,3620.2,2.90067832]
[1754475811096,5.91318001,3620.3,3619.4,0.002]
[1754475811331,0.9235,3620.2,3619.8,0.1384]
[1754475811529,0.9235,3620.1,3619.8,2.76253757]
[1754475811744,0.9235,3620.0,3619.8,2.76253757]
[1754475811944,4.298,3619.9,3619.8,2.76253757]
[1754475812316,5.2215,3619.9,3619.8,2.76253757]
[1754475812648,5.2215,3619.9,3619.7,0.1384]
[1754475812857,0.9235,3619.8,3619.7,0.6884]
[1754475813016,0.9235,3619.8,3619.7,3.45105988]
[1754475813718,4.298,3619.9,3619.8,2.76258356]
[1754475814055,0.4506,3620.2,3619.7,0.6884]
[1754475814220,0.4506,3620.2,3620.1,2.76235463]
[1754475814418,5.2215,3620.2,3620.0,2.76240939]
[1754475814622,0.13840001,3620.3,3619.8,0.55]
[1754475814820,5.2215,3620.1,3620.0,2.90083093]
[1754475815140,5.74365,3620.1,3620.0,0.1384]
[1754475815341,5.74365,3620.1,3619.9,2.76250139]
[1754475815546,4.82015,3620.1,3620.0,2.76243093]
[1754475816051,5.74365,3620.1,3620.0,2.76243093]
[1754475816258,5.74365,3620.1,3619.9,2.76248544]
[1754475816558,0.9235,3620.0,3619.9,2.76248544]
[1754475817722,0.9235,3620.0,3619.7,0.1384]
[1754475817921,0.9235,3619.9,3619.4,2.76487158]
[1754475818153,5.2215,3619.8,3619.7,2.76265988]
[1754475820668,4.298,3619.8,3619.7,2.76265988]
[1754475821455,1e-08,3620.3,3620.1,2.762309]
[1754475821636,4.298,3620.2,3620.1,2.762309]
[1754475821832,4.55559064,3620.2,3620.1,2.762309]
[1754475822247,5.47909064,3620.2,3619.9,0.1384]
[1754475822464,1.18104879,3620.1,3619.9,2.90089689]
[1754475822662,0.4729,3620.1,3619.9,0.1384]
[1754475823025,0.4729,3620.1,3619.9,2.76246161]
[1754475823332,0.9235,3620.1,3619.9,2.76246161]
[1754475823926,0.4506,3620.1,3620.0,2.76243093]
[1754475824155,4.99814907,3620.2,3620.0,2.76243093]
[1754475824463,0.1384,3620.2,3620.1,3.31235463]
[1754475824662,1e-08,3620.3,3620.2,3.31227832]
[1754475824825,4.29700001,3620.3,3620.2,3.31227832]
[1754475826023,1e-08,3620.3,3620.2,3.31227832]
[1754475826228,1e-08,3620.3,3620.2,4.23737832]
[1754475826457,4.29700001,3620.3,3620.2,4.23737832]
[1754475827343,4.29700001,3620.3,3620.2,4.39262154]
[1754475828464,4.29700001,3620.3,3620.2,3.46752154]
[1754475828843,4.74760001,3620.3,3620.2,2.91752154]
[1754475829060,4.74760001,3620.3,3620.2,3.46752154]
[1754475829268,4.29700001,3620.3,3620.2,2.91752154]
[1754475829767,4.29700001,3620.3,3620.2,3.46752154]
[1754475830357,4.29700001,3620.3,3620.2,3.31227832]
[1754475830664,4.29700001,3620.3,3620.2,3.46751129]
[1754475831063,1e-08,3620.3,3620.2,3.92561129]
[1754475831268,1e-08,3620.3,3620.2,4.39261129]
[1754475832377,1e-08,3620.3,3620.2,7.39261129]
[1754475832536,1e-08,3620.3,3620.2,7.53101129]
[1754475832736,1e-08,3620.3,3620.2,11.82801129]
[1754475836474,0.04,3620.9,3620.8,3.31182059]
[1754475836673,0.04,3620.9,3620.8,25.31432852]
[1754475836874,0.04,3620.9,3620.8,26.23942852]
[1754475838048,0.04,3620.9,3620.8,7.53055356]
[1754475838243,0.9635,3620.9,3620.8,0.15523297]
[1754475838488,1.48975,3620.9,3620.7,2.76184739]
[1754475838688,0.9235,3620.8,3620.7,2.76184739]
[1754475839043,0.9235,3620.8,3620.7,3.31184739]
[1754475839685,0.04,3620.9,3620.8,3.31182059]
[1754475839846,4.335,3620.9,3620.8,3.31182059]
[1754475840042,4.335,3620.9,3620.8,0.55]
[1754475840248,4.335,3620.9,3620.6,2.76190266]
[1754475840493,0.9235,3620.8,3620.7,2.76189687]
[1754475841180,0.9235,3620.8,3620.7,3.31189687]
[1754475841342,4.7456,3620.8,3620.7,3.31189687]
[1754475842987,5.1941,3620.8,3620.6,2.7619729]
[1754475843190,4.295,3620.8,3620.6,0.55]
[1754475843345,0.9129,3620.7,3620.6,0.55]
[1754475843549,0.9129,3620.7,3620.6,3.31197315]
[1754475843960,0.9129,3620.7,3620.6,0.55]
[1754475844575,0.9129,3620.7,3620.6,3.31197315]
[1754475844884,0.9129,3620.7,3620.6,0.55]
[1754475845587,0.9129,3620.7,3620.6,3.31197315]
[1754475845965,4.295,3620.8,3620.7,3.31189687]
[1754475846366,4.7594,3620.8,3620.7,3.31189687]
[1754475846764,5.2079,3620.8,3620.7,0.55]
[1754475847089,5.2079,3620.8,3620.7,3.31189687]
[1754475848285,0.04,3620.9,3620.8,2.76182059]
[1754475848486,4.335,3620.9,3620.8,2.76182059]
[1754475848688,4.7994,3620.9,3620.8,2.76182059]
[1754475849227,4.335,3620.9,3620.8,3.31182059]
[1754475849820,4.335,3620.9,3620.8,4.37332059]
[1754475851916,0.04,3620.9,3620.8,3.93752059]
[1754475852417,0.04,3620.9,3620.8,4.37332059]
[1754475853787,0.04,3620.9,3620.8,25.94379555]
[1754475854001,0.04,3620.9,3620.8,25.64639555]
[1754475854200,0.04,3620.9,3620.8,6.93752059]
[1754475855122,0.04,3620.9,3620.8,7.37332059]
[1754475863038,0.001,3621.0,3620.8,7.37332059]
[1754475863039,1e-08,3621.0,3620.9,6.31174431]
[1754475863238,1e-08,3621.0,3620.9,25.94371927]
[1754475864945,1e-08,3621.0,3620.9,25.02061927]
[1754475865443,1e-08,3621.0,3620.9,10.60474431]
[1754475865808,1e-08,3621.0,3620.9,11.09204431]
[1754475866011,1e-08,3621.0,3620.9,11.52784431]
[1754475868990,1e-08,3621.1,3621.0,6.31166804]
[1754475869149,1e-08,3621.1,3621.0,7.37316804]
[1754475870272,0.001,3621.4,3621.3,6.31143926]
[1754475870483,0.001,3621.7,3621.5,6.31128675]
[1754475870884,0.001,3621.7,3621.5,6.44968675]
[1754475873895,0.001,3621.7,3621.5,6.92208675]
[1754475874289,0.001,3621.7,3621.5,7.35308675]
[1754475874997,0.001,3621.7,3621.5,6.92208675]
[1754475875226,0.001,3621.7,3621.5,6.44968675]
[1754475876400,0.8966,3621.6,3621.5,6.44968675]
[1754475877488,0.001,3621.6,3621.5,6.44968675]
[1754475878378,0.001,3621.6,3621.5,10.74068675]
[1754475878580,0.001,3621.6,3621.5,11.21308675]
[1754475878775,0.001,3621.6,3621.5,11.64408675]
[1754475881075,0.001,3621.6,3621.5,11.21308675]
[1754475882214,0.001,3621.6,3621.5,10.74068675]
[1754475882515,0.4657,3621.6,3621.5,10.74068675]
[1754475883410,0.001,3621.6,3621.5,10.74068675]
[1754475883712,0.001,3621.6,3621.5,11.21308675]
[1754475884211,0.001,3621.6,3621.5,10.74068675]
[1754475886082,0.001,3621.6,3621.5,11.21308675]
[1754475886282,0.001,3621.6,3621.5,6.44968675]
[1754475890602,0.8966,3621.6,3621.5,10.18868675]
[1754475890822,0.8966,3621.6,3621.5,5.89968675]
[1754475891117,0.8966,3621.6,3621.5,0.1384]
[1754475891439,0.8966,3621.6,3621.5,2.89968675]
[1754475893025,0.8966,3621.6,3621.5,0.1384]
[1754475893444,0.8966,3621.6,3621.5,3.44968675]
[1754475893805,0.8966,3621.6,3621.5,0.6884]
[1754475894215,0.8966,3621.6,3621.5,3.44968675]
[1754475894529,0.4657,3621.6,3621.5,3.44968675]
[1754475894734,0.8966,3621.6,3621.5,3.44968675]
[1754475895136,0.001,3621.6,3621.5,3.44968675]
[1754475896452,0.001,3621.6,3621.5,6.44968675]
[1754475896648,0.001,3621.6,3621.5,7.35308675]
[1754475897056,0.001,3621.6,3621.5,6.44968675]
[1754475897455,0.4657,3621.6,3621.5,6.44968675]
[1754475898525,0.4657,3621.6,3621.5,3.44968675]
[1754475898526,0.8966,3621.6,3621.5,3.44968675]
[1754475898952,0.001,3621.6,3621.5,3.44968675]
[1754475899349,0.001,3621.6,3621.5,4.35308675]
[1754475899546,0.001,3621.6,3621.5,7.35308675]
[1754475901856,0.001,3621.6,3621.5,6.44968675]
[1754475902040,0.001,3621.6,3621.5,10.73668675]
[1754475902254,0.9653,3621.6,3621.5,5.89968675]
[1754475902433,0.9653,3621.6,3621.5,6.44968675]
[1754475902835,0.9653,3621.6,3621.5,3.44968675]
[1754475905723,0.9653,3621.6,3621.5,0.6884]
[1754475906060,0.9653,3621.6,3621.5,3.44968675]
[1754475907756,0.9653,3621.6,3621.5,0.6884]
[1754475907946,0.9653,3621.6,3621.5,0.1384]
[1754475908149,1.49473,3621.6,3621.5,0.1384]
[1754475908329,1.49473,3621.6,3621.4,0.55]
[1754475908525,0.4719,3621.5,3621.4,0.6884]
[1754475908923,0.9643,3621.5,3621.4,3.449763]
[1754475909125,0.9643,3621.5,3621.4,0.6884]
[1754475909564,1.113973,3621.5,3621.4,0.1384]
[1754475909767,1.252373,3621.5,3621.0,0.1404]
[1754475909960,0.288073,3621.5,3621.4,0.002]
[1754475910538,1.252373,3621.5,3621.4,0.002]
[1754475911532,5.399973,3621.5,3621.4,0.002]
[1754475917692,4.285,3621.5,3621.4,0.552]
[1754475917989,0.001,3621.6,3621.4,3.451763]
[1754475918190,4.285,3621.5,3621.4,3.451763]
[1754475918372,0.001,3621.6,3621.4,3.451763]
[1754475918565,4.285,3621.5,3621.4,3.451763]
[1754475919163,4.285,3621.5,3621.4,0.6904]
[1754475919683,4.7569,3621.5,3621.4,0.6904]
[1754475920057,0.001,3621.6,3621.4,3.45174167]
[1754475920258,4.285,3621.5,3621.4,3.451763]
[1754475920877,0.001,3621.6,3621.5,3.31128675]
[1754475921186,4.285,3621.6,3621.5,3.31128675]
[1754475922080,4.285,3621.6,3621.4,0.1404]
[1754475922282,0.94984,3621.5,3621.4,0.002]
[1754475923395,1.44224,3621.5,3621.4,0.002]
[1754475931696,1.44324,3621.5,3621.4,0.002]
[1754475933524,4.283,3621.5,3621.4,0.002]
[1754475934485,5.1953,3621.5,3621.4,0.002]
[1754475942930,0.4609,3621.5,3621.4,0.002]
[1754475943235,4.282,3621.5,3621.4,0.4615]
[1754475943397,4.282,3621.5,3621.4,0.002]
[1754475943737,5.54408654,3621.5,3621.4,0.002]
[1754475944031,5.09168654,3621.5,3621.4,0.002]
[1754475947228,0.81068654,3621.5,3621.4,0.002]
[1754475947423,4.281,3621.5,3621.4,0.002]
[1754475948919,4.281,3621.5,3621.4,0.4615]
[1754475949411,4.281,3621.5,3621.4,0.002]
[1754475949814,4.7334,3621.5,3621.4,0.002]
[1754475950741,4.281,3621.5,3621.4,0.002]
[1754475954210,5.04458782,3621.5,3621.4,0.002]
[1754475955048,5.49698782,3621.5,3621.4,0.002]
[1754475955551,5.04458782,3621.5,3621.4,0.002]
[1754475956314,5.95688782,3621.5,3621.4,0.002]
[1754475957229,8.71817457,3621.5,3621.4,0.002]
[1754475957425,11.71817457,3621.5,3621.4,0.002]
[1754475959155,41.71817457,3621.5,3621.4,0.002]
[1754475959543,41.82884557,3621.5,3621.4,0.002]
[1754475961253,41.71817457,3621.5,3621.4,0.002]
[1754475962848,42.06527488,3621.5,3621.4,0.002]
[1754475963247,41.71817457,3621.5,3621.4,0.002]
[1754475965038,42.06527488,3621.5,3621.4,0.002]
[1754475966253,2.76159178,3621.1,3621.0,0.002]
[1754475966489,32.89999178,3621.1,3621.0,0.002]
[1754475966641,8.08929178,3621.1,3621.0,0.002]
[1754475966975,3.37139178,3621.1,3621.0,0.002]
[1754475967142,7.64739178,3621.1,3621.0,0.002]
[1754475967343,12.2814742,3621.1,3621.0,0.002]
[1754475967538,2.76189687,3620.7,3620.6,0.4588]
[1754475967742,0.1384,3620.7,3620.6,0.002]
[1754475968178,4.4144,3620.7,3620.6,0.002]
[1754475968382,4.276,3620.7,3620.6,0.9096]
[1754475968677,0.1384,3620.9,3620.6,0.9096]
[1754475968883,0.113,3621.0,3620.7,0.9076]
[1754475969178,4.276,3620.9,3620.7,0.9076]
[1754475969374,4.276,3620.9,3620.6,0.002]
[1754475969585,4.276,3620.9,3620.7,0.9076]
[1754475969894,4.276,3620.8,3620.6,0.002]
[1754475970070,0.2514,3621.0,3620.6,0.002]
[1754475970381,0.2514,3621.0,3620.7,0.9076]
[1754475970583,4.276,3620.9,3620.6,2.76392385]
[1754475970741,0.113,3621.0,3620.8,3.66941443]
[1754475970943,0.113,3621.0,3620.8,0.9076]
[1754475971141,0.113,3621.0,3620.7,2.90026372]
[1754475971368,4.276,3620.9,3620.8,2.7618071]
[1754475971538,4.276,3620.9,3620.7,0.1384]
[1754475971539,0.113,3621.0,3620.9,3.31174431]
[1754475971744,4.5264,3621.0,3620.9,0.9076]
[1754475971982,4.388,3621.0,3620.9,3.66934431]
[1754475972280,4.388,3621.0,3620.9,1.4576]
[1754475972482,0.113,3621.0,3620.9,4.35774431]
[1754475973285,4.388,3621.0,3620.9,4.35774431]
[1754475973581,0.113,3621.0,3620.9,4.35774431]
[1754475973748,4.388,3621.0,3620.9,4.35774431]
[1754475975380,4.388,3621.0,3620.9,1.596]
[1754475978462,4.388,3621.0,3620.9,4.35774431]
[1754475979588,0.113,3621.0,3620.9,23.0522456]
[1754475979777,4.386,3621.0,3620.9,23.0522456]
[1754475979971,4.386,3621.0,3620.9,4.35774431]
[1754475982651,4.386,3621.0,3620.9,3.90694431]
[1754475983899,4.386,3621.0,3620.9,0.6884]
[1754475985280,5.2993,3621.0,3620.6,0.002]
[1754475985484,0.9133,3620.9,3620.6,0.1404]
[1754475985872,0.4714,3620.9,3620.6,0.5972]
[1754475986387,4.386,3621.0,3620.6,0.5972]
[1754475986587,4.8574,3621.0,3620.6,0.5972]
[1754475987585,5.2993,3621.0,3620.6,0.5972]
[1754475987968,4.386,3621.0,3620.7,0.4568]
[1754475988118,4.8574,3621.0,3620.6,0.1404]
[1754475988314,4.8574,3621.0,3620.6,0.5972]
[1754475989388,0.4714,3620.9,3620.6,0.1404]
[1754475989588,4.386,3621.0,3620.6,0.5972]
[1754475989908,4.8574,3621.0,3620.6,3.35916643]
[1754475990119,4.386,3621.0,3620.7,0.4568]
[1754475990501,4.271,3620.9,3620.8,0.9076]
[1754475990813,4.271,3620.9,3620.8,3.45015903]
[1754475991176,0.113,3621.0,3620.9,3.31174431]
[1754475991382,4.384,3621.0,3620.9,4.23334431]
[1754475992231,4.384,3621.0,3620.9,3.78764431]
[1754475992517,4.384,3621.0,3620.9,4.23334431]
[1754475993301,4.383,3621.0,3620.9,4.23334431]
[1754475993686,0.113,3621.0,3620.9,4.23334431]
[1754475994030,4.383,3621.0,3620.9,4.23334431]
[1754475994229,0.113,3621.0,3620.9,4.23334431]
[1754475994391,4.383,3621.0,3620.9,4.23334431]
[1754475995517,4.383,3621.0,3620.9,3.31174431]
[1754475995888,4.383,3621.0,3620.9,3.78764431]
[1754475996095,4.383,3621.0,3620.9,3.31174431]
[1754475996296,4.384,3621.0,3620.9,3.31174431]
[1754475997534,4.8509,3621.0,3620.9,0.55]
[1754475998394,4.8509,3621.0,3620.9,3.31174431]
[1754475999137,4.384,3621.0,3620.9,3.31174431]
[1754475999762,4.384,3621.0,3620.9,3.78764431]
[1754475999925,4.384,3621.0,3620.9,4.23334431]
[1754476002251,4.383,3621.0,3620.9,4.23334431]
[1754476004432,4.382,3621.0,3620.9,4.23334431]
[1754476005721,4.382,3621.0,3620.9,22.9278456]
[1754476005968,0.114,3621.0,3620.9,22.9278456]
[1754476006138,4.381,3621.0,3620.9,22.9278456]
[1754476006545,0.114,3621.0,3620.9,22.9278456]
[1754476009063,0.114,3621.0,3620.9,22.9202806]
[1754476009540,0.114,3621.0,3620.9,30.2002806]
[1754476010264,0.114,3621.0,3620.9,25.9202806]
[1754476010483,1e-08,3621.0,3620.9,25.9202806]
[1754476011966,1e-08,3621.7,3621.6,3.55]
[1754476012152,1e-08,3621.7,3621.6,25.0057118]
[1754476012327,0.001,3622.1,3621.8,6.31105803]
[1754476012756,0.001,3622.1,3621.8,7.37105803]
[1754476013191,0.001,3622.1,3622.0,25.00540686]
[1754476013470,0.001,3622.1,3622.0,25.14380686]
[1754476013674,0.001,3622.1,3622.0,26.06540686]
[1754476014975,0.001,3622.1,3622.0,29.88470686]
[1754476015134,0.001,3622.1,3622.0,30.33040686]
[1754476015331,0.001,3622.1,3622.0,29.88470686]
[1754476015764,0.001,3622.1,3622.0,30.33040686]
[1754476016064,0.001,3622.1,3622.0,29.40880686]
[1754476016631,0.001,3622.1,3622.0,29.88470686]
[1754476016931,0.001,3622.1,3622.0,25.61970686]
[1754476017879,0.001,3622.1,3622.0,26.06540686]
[1754476018664,1e-08,3622.1,3622.0,26.06540686]
[1754476020546,1e-08,3622.1,3622.0,25.61970686]
[1754476020947,1e-08,3622.1,3622.0,26.06540686]
[1754476021161,1e-08,3622.1,3622.0,25.14380686]
[1754476022950,1e-08,3622.1,3622.0,25.61030686]
[1754476023156,1e-08,3622.1,3622.0,30.34410686]
[1754476023783,1e-08,3622.1,3622.0,30.20570686]
[1754476024085,1e-08,3622.4,3622.3,3.31067691]
[1754476024262,1e-08,3622.4,3622.3,10.57267691]
[1754476025065,1e-08,3622.4,3622.3,10.71107691]
[1754476029975,0.45320001,3622.4,3622.3,6.44907691]
[1754476030168,1e-08,3622.4,3622.3,10.15907691]
[1754476030568,1e-08,3622.4,3622.3,6.44907691]
[1754476031387,0.45320001,3622.4,3622.3,6.44907691]
[1754476032591,1e-08,3622.4,3622.3,6.44907691]
[1754476033119,0.45320001,3622.4,3622.3,6.44907691]
[1754476035091,1e-08,3622.4,3622.3,6.44907691]
[1754476035278,0.45320001,3622.4,3622.3,6.44907691]
[1754476035690,0.89440001,3622.4,3622.3,6.44907691]
[1754476037288,0.45320001,3622.4,3622.3,6.44907691]
[1754476037687,1e-08,3622.4,3622.3,6.44907691]
[1754476039107,0.45320001,3622.4,3622.3,6.44907691]
[1754476039287,1e-08,3622.4,3622.3,6.44907691]
[1754476042313,0.89440001,3622.4,3622.3,6.44907691]
[1754476042816,0.89440001,3622.4,3622.3,3.44907691]
[1754476045526,0.86440001,3622.4,3622.3,3.44907691]
[1754476048234,0.42320001,3622.4,3622.3,3.44907691]
[1754476049939,0.86440001,3622.4,3622.3,3.44907691]
[1754476056010,0.001,3622.5,3622.4,3.3106007]
[1754476056212,0.001,3622.5,3622.4,22.96090199]
[1754476060952,0.469,3622.5,3622.4,2.7606007]
[1754476061149,0.9103,3622.5,3622.4,2.7606007]
[1754476061517,0.9103,3622.5,3622.4,3.3106007]
[1754476071770,0.001,3622.5,3622.4,3.3106007]
[1754476072146,0.9103,3622.5,3622.4,3.3106007]
[1754476072343,0.9103,3622.5,3622.4,0.55]
[1754476072549,0.9103,3622.5,3622.4,3.3106007]
[1754476072749,0.001,3622.5,3622.4,3.3106007]
[1754476072963,0.001,3622.5,3622.4,4.2664007]
[1754476073979,0.001,3622.5,3622.4,11.5174007]
[1754476074701,1e-08,3622.7,3622.6,6.31044829]
[1754476074850,1e-08,3622.7,3622.6,29.39334958]
[1754476075045,1e-08,3622.8,3622.7,6.31037209]
[1754476075249,1e-08,3622.8,3622.7,7.26617209]
[1754476075479,0.041,3622.9,3622.8,6.3102959]
[1754476075480,1e-08,3622.9,3622.8,6.3102959]
[1754476075759,1e-08,3622.9,3622.8,11.5160959]
[1754476075970,1e-08,3622.9,3622.8,11.6544959]
[1754476077175,1e-08,3623.2,3623.1,3.31006734]
[1754476077483,1e-08,3623.2,3623.1,29.25456863]
[1754476077798,1e-08,3623.2,3623.1,30.34876863]
[1754476081785,0.04,3623.9,3623.8,3.30953419]
[1754476081953,0.04,3623.9,3623.8,22.00403548]
[1754476082152,0.04,3623.9,3623.8,22.62673548]
[1754476082585,0.04,3623.9,3623.8,26.09003548]
[1754476083168,0.041,3623.9,3623.8,26.09003548]
[1754476086773,1.53950216,3624.8,3623.8,26.09003548]
[1754476086774,2.01360216,3624.8,3624.2,6.30922962]
[1754476086979,2.01360216,3624.8,3624.2,25.14133091]
[1754476087185,2.01360216,3624.8,3624.2,26.08973091]
[1754476087762,0.4741,3624.8,3624.2,26.08973091]
[1754476088491,0.4741,3624.7,3624.2,25.62643091]
[1754476088794,0.4741,3624.6,3624.2,25.14133091]
[1754476088957,0.4751,3624.3,3624.2,25.14133091]
[1754476089279,0.9436,3624.3,3624.2,2.89682962]
[1754476089689,0.9436,3624.3,3624.2,3.44682962]
[1754476092102,0.4751,3624.3,3624.2,3.44682962]
[1754476092480,0.9436,3624.3,3624.2,3.44682962]
[1754476093774,0.4751,3624.3,3624.2,3.44682962]
[1754476094100,0.001,3624.3,3624.2,3.44682962]
[1754476095822,0.4751,3624.3,3624.2,3.44682962]
[1754476096169,0.9436,3624.3,3624.2,3.44682962]
[1754476097911,0.4751,3624.3,3624.2,3.44682962]
[1754476099112,0.001,3624.3,3624.2,3.44682962]
[1754476101902,0.001,3624.3,3624.2,4.39522962]
[1754476102298,0.001,3624.3,3624.2,3.44682962]
[1754476102483,0.9436,3624.3,3624.2,3.44682962]
[1754476105017,0.4751,3624.3,3624.2,3.44682962]
[1754476107413,0.9436,3624.3,3624.2,3.44682962]
[1754476108724,0.4751,3624.3,3624.2,3.44682962]
[1754476110425,0.9436,3624.3,3624.2,3.44682962]
[1754476116050,0.001,3624.3,3624.2,3.44682962]
[1754476124052,0.001,3624.3,3624.2,3.91182962]
[1754476126383,0.001,3624.3,3624.2,3.44682962]
[1754476126586,0.001,3624.3,3624.2,4.34192962]
[1754476127455,0.001,3624.3,3624.2,7.34192962]
[1754476127674,0.001,3624.7,3624.6,3.30892512]
[1754476127875,0.001,3624.7,3624.6,22.00342641]
[1754476128081,0.001,3624.7,3624.6,23.03612641]
[1754476129456,0.001,3624.7,3624.6,30.27312641]
[1754476138324,0.001,3624.7,3624.6,29.37802641]
[1754476138452,0.001,3624.7,3624.6,30.27312641]
[1754476140266,0.001,3625.1,3624.7,0.55]
[1754476140490,0.04,3625.9,3625.7,3.30808809]
[1754476140655,0.04,3625.9,3625.8,22.00251331]
[1754476140855,0.04,3625.9,3625.8,22.14011331]
[1754476141196,0.04,3625.9,3625.8,26.83911331]
[1754476141382,1e-08,3625.9,3625.8,30.28331331]